[Event "2nd FIDE WCC Rapid G10"]
[Site "Minsk"]
[Date "2018.06.22"]
[Round "1"]
[White "Edithso, Samantha"]
[Black "Filippova, Varvara"]
[Result "1-0"]
[ECO "C55"]
[WhiteElo "1714"]
[BlackElo "1155"]
[Annotator "NA RC"]
[PlyCount "97"]
[EventDate "2018.06.22"]
[EventType "rapid"]
[EventCountry "BLR"]
[SourceTitle "playchess.com"]
[Source "ChessBase"]
[SourceQuality "1"]
[TimeControl "600+5"]

1. e4 {[%emt 0:00:00]} e5 {[%emt 0:00:01]} 2. Nf3 {[%emt 0:00:00]} Nc6 {[%emt 0:00:01]} 3. Bc4 {[%emt 0:00:00]} Nf6 {[%emt 0:00:03]} 4. d3 {[%emt 0:00:01]} h6 {[%emt 0:00:06]} 5. O-O {[%emt 0:00:02]} Bc5 {[%emt 0:00:01]} 6. c3 {[%emt 0:00:04]} Bb6 {[%emt 0:00:13]} 7. Be3 {[%emt 0:00:22]} d5 {[%emt 0:00:33]} 8. exd5 {[%emt 0:00:14]} Nxd5 {[%emt 0:00:09]} 9. Bxd5 {[%emt 0:00:12]} Qxd5 {[%emt 0:00:06]} 10. c4 {[%emt 0:00:12]} Qd8 {[%emt 0:00:17]} 11. Nc3 {[%emt 0:00:03]} Bg4 {[%emt 0:00:04]} 12. Nd5 {[%emt 0:00:29]} O-O {[%emt 0:00:32]} 13. h3 {[%emt 0:00:14]} Bh5 {[%emt 0:00:02]} 14. b4 {[%emt 0:00:19]} Bd4 {[%emt 0:00:25]} 15. Rc1 {[%emt 0:00:20]} a5 {[%emt 0:00:32]} 16. b5 {[%emt 0:00:05]} Nb4 {[%emt 0:00:03]} 17. Bxd4 {[%emt 0:00:48]} exd4 {[%emt 0:00:05]} 18. Nxb4 {[%emt 0:00:14]} axb4 {[%emt 0:00:03]} 19. g4 {[%emt 0:00:06]} Bg6 {[%emt 0:00:04]} 20. Qb3 {[%emt 0:00:06]} Qf6 {[%emt 0:00:34]} 21. Kg2 {[%emt 0:00:09]} Qd6 {[%emt 0:01:03]} 22. c5 {[%emt 0:00:11]} Qe6 {[%emt 0:00:13]} 23. Rc4 {[%emt 0:00:21]} Qd5 {[%emt 0:00:28]} 24. Rfc1 {[%emt 0:00:39]} b6 {[%emt 0:00:32]} 25. Rxd4 {[%emt 0:00:19]} Qxb3 {[%emt 0:00:07]} 26. axb3 {[%emt 0:00:01]} Ra3 {[%emt 0:00:22]} 27. Rxb4 {[%emt 0:00:18]} Bxd3 {[%emt 0:00:06]} 28. cxb6 {[%emt 0:00:05]} cxb6 {[%emt 0:00:04]} 29. Ne5 {[%emt 0:00:03]} Bg6 {[%emt 0:00:24]} 30. Rc6 {[%emt 0:00:14]} Rb8 {[%emt 0:00:50]} 31. Nxg6 {[%emt 0:00:16]} fxg6 {[%emt 0:00:05]} 32. Rxg6 {[%emt 0:00:03]} Kf7 {[%emt 0:00:07]} 33. Rc6 {[%emt 0:00:02]} Rb7 {[%emt 0:00:29]} 34. Rf4+ {[%emt 0:00:08]} Kg8 {[%emt 0:00:12]} 35. b4 {[%emt 0:00:04]} Rb3 {[%emt 0:00:18]} 36. Rd4 {[%emt 0:00:22]} Kh7 {[%emt 0:00:36]} 37. Rf4 {[%emt 0:00:07]} Kg8 {[%emt 0:00:10]} 38. Re6 {[%emt 0:00:20]} Rb8 {[%emt 0:00:25]} 39. Re3 {[%emt 0:00:11]} Rb2 {[%emt 0:00:12]} 40. Kg3 {[%emt 0:00:06]} g6 {[%emt 0:00:20]} 41. Rf6 {[%emt 0:00:07]} Kg7 {[%emt 0:00:11]} 42. Rf4 {[%emt 0:00:05]} g5 {[%emt 0:00:08]} 43. Rfe4 {[%emt 0:00:08]} Rb7 {[%emt 0:00:18]} 44. Re7+ {[%emt 0:00:06]} Rxe7 {[%emt 0:00:02]} 45. Rxe7+ {[%emt 0:00:01]} Kf6 {[%emt 0:00:00]} 46. Rb7 {[%emt 0:00:06]} Rxb4 {[%emt 0:00:03]} 47. Rxb6+ {[%emt 0:00:01] Rb3+ [%clk 0:02:20] Rb7 Rb2 Rb6+ [%clk 0:07:33] Rb4 [%clk 0:02:17] Rb8 [%clk 0:07:24]} Ke5 {[%emt 0:00:13]} 48. Kg2 {[%emt 0:00:00]} Rb3 {[%emt 0:00:14] b6 [%clk 0:07:27] Kd5 [%clk 0:02:02] Rh8 [%clk 0:07:21] Kc6 [%clk 0:01:54]} 49. Rxh6 {[%emt 0:00:00] Rxb6 [%clk 0:01:58]} 1-0

[Event "2nd FIDE WCC Rapid G10"]
[Site "Minsk"]
[Date "2018.06.22"]
[Round "1"]
[White "Vlasova, Olesia"]
[Black "Zavezion, Nika"]
[Result "0-1"]
[ECO "B11"]
[WhiteElo "1682"]
[BlackElo "1135"]
[Annotator "NA RC"]
[PlyCount "110"]
[EventDate "2018.06.22"]
[EventType "rapid"]
[EventCountry "BLR"]
[SourceTitle "playchess.com"]
[Source "ChessBase"]
[SourceQuality "1"]
[TimeControl "600+5"]

1. e4 {[%emt 0:00:00]} c6 {[%emt 0:00:01]} 2. Nc3 {[%emt 0:00:02]} d5 {[%emt 0:00:02]} 3. Nf3 {[%emt 0:00:06]} Bg4 {[%emt 0:00:33]} 4. h3 {[%emt 0:00:04]} Bxf3 {[%emt 0:00:06]} 5. Qxf3 {[%emt 0:00:04]} Nf6 {[%emt 0:00:05]} 6. d3 {[%emt 0:00:53]} e6 {[%emt 0:00:02]} 7. Bd2 {[%emt 0:00:26]} Bc5 {[%emt 0:00:12]} 8. O-O-O {[%emt 0:01:28]} Qb6 {[%emt 0:00:11]} 9. Na4 {[%emt 0:00:24]} Qb5 {[%emt 0:01:01]} 10. Nxc5 {[%emt 0:00:10]} Qxc5 {[%emt 0:00:05]} 11. Qg3 {[%emt 0:00:55]} O-O {[%emt 0:00:10]} 12. e5 {[%emt 0:01:03]} Nfd7 {[%emt 0:00:02]} 13. Bh6 {[%emt 0:00:15]} g6 {[%emt 0:01:24]} 14. Bxf8 {[%emt 0:00:05]} Kxf8 {[%emt 0:00:02]} 15. d4 {[%emt 0:00:11]} Qa5 {[%emt 0:00:07]} 16. Kb1 {[%emt 0:00:12]} Nb6 {[%emt 0:00:18]} 17. Qh4 {[%emt 0:00:38]} Kg8 {[%emt 0:00:52]} 18. Qd8+ {[%emt 0:00:34]} Kg7 {[%emt 0:00:04]} 19. h4 {[%emt 0:00:32]} h5 {[%emt 0:00:16]} 20. Be2 {[%emt 0:00:19]} N8d7 {[%emt 0:00:35]} 21. Qg5 {[%emt 0:00:05]} Rh8 {[%emt 0:00:07]} 22. g4 {[%emt 0:00:06]} hxg4 {[%emt 0:00:29]} 23. h5 {[%emt 0:00:06]} Na4 {[%emt 0:00:22]} 24. hxg6 {[%emt 0:01:05]} Qb6 {[%emt 0:00:25]} 25. gxf7+ {[%emt 0:00:06]} Kxf7 {[%emt 0:00:02]} 26. Qf4+ {[%emt 0:00:25]} Ke7 {[%emt 0:00:09]} 27. Qc1 {[%emt 0:01:04]} Nc3+ {[%emt 0:00:02]} 28. Ka1 {[%emt 0:00:04]} Nxe2 {[%emt 0:01:00]} 29. Qd2 {[%emt 0:00:00]} Rxh1 {[%emt 0:00:02]} 30. Rxh1 {[%emt 0:00:02]} Nxd4 {[%emt 0:00:05]} 31. Rh7+ {[%emt 0:00:04]} Kd8 {[%emt 0:00:03]} 32. c3 {[%emt 0:00:39]} Qb5 {[%emt 0:00:16]} 33. Rh1 {[%emt 0:00:11]} Nf3 {[%emt 0:00:17]} 34. Qf4 {[%emt 0:00:04]} Kc7 {[%emt 0:00:12]} 35. Qxg4 {[%emt 0:00:02]} Nfxe5 {[%emt 0:00:07]} 36. Qg3 {[%emt 0:00:04]} Kb6 {[%emt 0:00:26]} 37. f4 {[%emt 0:00:02]} Nc4 {[%emt 0:00:13]} 38. Qf2+ {[%emt 0:00:03]} Ka6 {[%emt 0:00:09]} 39. b3 {[%emt 0:00:04]} Nd6 {[%emt 0:00:26]} 40. Re1 {[%emt 0:00:05]} Nc5 {[%emt 0:00:18]} 41. Qe2 {[%emt 0:00:18]} Nde4 {[%emt 0:00:46]} 42. Qxb5+ {[%emt 0:00:02]} Kxb5 {[%emt 0:00:01]} 43. Re3 {[%emt 0:00:04]} a5 {[%emt 0:00:07]} 44. Kb2 {[%emt 0:00:03]} b6 {[%emt 0:00:15]} 45. c4+ {[%emt 0:00:03]} dxc4 46. bxc4+ {[%emt 0:00:04]} Kxc4 {[%emt 0:00:06]} 47. Kc2 {[%emt 0:00:07]} Kd4 {[%emt 0:00:15]} 48. Re1 {[%emt 0:00:02]} Kc4 {[%emt 0:00:11]} 49. Re3 {[%emt 0:00:01]} b5 {[%emt 0:00:03]} 50. a3 {[%emt 0:00:05]} a4 {[%emt 0:00:04]} 51. Rf3 {[%emt 0:00:12]} Nb3 {[%emt 0:00:07]} 52. f5 {[%emt 0:00:06]} Nd4+ {[%emt 0:00:01]} 53. Kc1 {[%emt 0:00:03]} Nxf3 {[%emt 0:00:02]} 54. fxe6 {[%emt 0:00:03]} Nd6 {[%emt 0:00:01]} 55. e7 {[%emt 0:00:02]} c5 {[%emt 0:00:04]} 0-1

[Event "2nd FIDE WCC Rapid G10"]
[Site "Minsk"]
[Date "2018.06.22"]
[Round "1"]
[White "Kleymenova, Valeria"]
[Black "Haapsal, Maria Ioanna"]
[Result "1-0"]
[ECO "D00"]
[WhiteElo "1669"]
[BlackElo "1063"]
[Annotator "NA RC"]
[PlyCount "55"]
[EventDate "2018.06.22"]
[EventType "rapid"]
[EventCountry "BLR"]
[SourceTitle "playchess.com"]
[Source "ChessBase"]
[SourceQuality "1"]
[TimeControl "600+5"]

1. d4 {[%emt 0:00:00]} d5 {[%emt 0:00:01]} 2. e3 {[%emt 0:00:00]} e6 {[%emt 0:00:01]} 3. f4 {[%emt 0:00:00]} Nf6 {[%emt 0:00:02]} 4. Nf3 {[%emt 0:00:02]} Be7 {[%emt 0:00:02]} 5. Bd3 {[%emt 0:00:04]} b6 {[%emt 0:00:04]} 6. O-O {[%emt 0:00:05]} O-O {[%emt 0:00:03]} 7. Qe2 {[%emt 0:00:06]} Bb7 {[%emt 0:00:03]} 8. Nbd2 {[%emt 0:00:08]} Nbd7 {[%emt 0:00:05]} 9. Ne5 {[%emt 0:00:09]} Rc8 {[%emt 0:00:05]} 10. c3 {[%emt 0:00:08]} c5 {[%emt 0:00:04]} 11. Ndf3 {[%emt 0:00:18]} Re8 {[%emt 0:00:38]} 12. Nxf7 {[%emt 0:01:02]} Kxf7 {[%emt 0:02:12]} 13. Ng5+ {[%emt 0:00:01]} Kg8 {[%emt 0:00:22]} 14. Nxe6 {[%emt 0:00:03]} Qc7 {[%emt 0:00:44]} 15. Nxc7 {[%emt 0:00:01]} Rxc7 {[%emt 0:00:02]} 16. Bd2 {[%emt 0:00:16]} cxd4 {[%emt 0:00:33]} 17. cxd4 {[%emt 0:00:09]} Rec8 {[%emt 0:00:11]} 18. Rac1 Rxc1 {[%emt 0:00:58]} 19. Rxc1 {[%emt 0:00:24]} Rd8 {[%emt 0:00:09]} 20. Rc7 {[%emt 0:00:20]} Rb8 {[%emt 0:00:12]} 21. Ba6 {[%emt 0:01:47]} Bxa6 {[%emt 0:00:07]} 22. Qxa6 {[%emt 0:00:02]} Rd8 {[%emt 0:00:31]} 23. Rxa7 {[%emt 0:00:46]} Ne4 {[%emt 0:00:25]} 24. Bb4 {[%emt 0:01:11]} Bxb4 {[%emt 0:01:32]} 25. Rxd7 {[%emt 0:00:17]} Re8 {[%emt 0:00:49]} 26. Qb7 {[%emt 0:00:19]} Nf6 {[%emt 0:01:17]} 27. Rxg7+ {[%emt 0:00:03]} Kh8 {[%emt 0:00:12]} 28. Rf7 {[%emt 0:01:18]} 1-0

[Event "2nd FIDE WCC Rapid G10"]
[Site "Minsk"]
[Date "2018.06.22"]
[Round "1"]
[White "Nandin-Erdene, Davaademberel"]
[Black "Jansone, Melanija Luize"]
[Result "1-0"]
[ECO "B01"]
[WhiteElo "1491"]
[BlackElo "1096"]
[Annotator "NA RC"]
[PlyCount "155"]
[EventDate "2018.06.22"]
[EventType "rapid"]
[EventCountry "BLR"]
[SourceTitle "playchess.com"]
[Source "ChessBase"]
[SourceQuality "1"]
[TimeControl "600+5"]

1. e4 {[%emt 0:00:00]} d5 {[%emt 0:00:01]} 2. exd5 {[%emt 0:00:00]} Qxd5 {[%emt 0:00:01]} 3. Nc3 {[%emt 0:00:00]} Qd8 {[%emt 0:00:02]} 4. d4 {[%emt 0:00:00]} Nf6 {[%emt 0:00:02]} 5. Nf3 {[%emt 0:00:00]} e6 {[%emt 0:00:01]} 6. Be3 {[%emt 0:00:02]} Nc6 {[%emt 0:00:02]} 7. Be2 {[%emt 0:00:11]} Bd6 {[%emt 0:00:11]} 8. a3 {[%emt 0:00:20]} O-O {[%emt 0:00:05]} 9. h3 {[%emt 0:00:08]} h6 {[%emt 0:00:03]} 10. O-O {[%emt 0:00:01]} Re8 {[%emt 0:00:11]} 11. Qd2 {[%emt 0:00:37]} e5 {[%emt 0:00:18]} 12. Rad1 {[%emt 0:00:36]} exd4 {[%emt 0:00:05]} 13. Nxd4 {[%emt 0:00:02]} Nxd4 {[%emt 0:00:04]} 14. Bxd4 {[%emt 0:00:20]} Be6 {[%emt 0:00:21]} 15. Rfe1 {[%emt 0:00:13]} a6 {[%emt 0:00:29]} 16. Bf3 {[%emt 0:00:08]} Rb8 {[%emt 0:00:43]} 17. Qc1 {[%emt 0:00:59]} Qe7 {[%emt 0:00:21]} 18. Bxf6 {[%emt 0:00:35]} Qxf6 {[%emt 0:00:06]} 19. Ne4 {[%emt 0:00:01]} Qf4 {[%emt 0:01:17]} 20. Nxd6 {[%emt 0:00:13]} Qxc1 {[%emt 0:00:03]} 21. Rxc1 {[%emt 0:00:02]} cxd6 {[%emt 0:00:03]} 22. Rcd1 {[%emt 0:00:02]} Red8 {[%emt 0:00:09]} 23. Rd4 {[%emt 0:00:06]} b5 {[%emt 0:00:16]} 24. Red1 {[%emt 0:00:19]} Rb6 {[%emt 0:00:03]} 25. b3 {[%emt 0:00:42]} Bf5 {[%emt 0:00:14]} 26. Be4 {[%emt 0:00:23]} Bxe4 {[%emt 0:00:17]} 27. Rxe4 {[%emt 0:00:01]} Rc6 {[%emt 0:00:13]} 28. c4 {[%emt 0:00:28]} bxc4 {[%emt 0:00:11]} 29. bxc4 {[%emt 0:00:00]} Rdc8 {[%emt 0:00:21]} 30. Rdd4 {[%emt 0:00:17]} g6 {[%emt 0:00:18]} 31. Kf1 {[%emt 0:00:11]} Kg7 {[%emt 0:00:03]} 32. Ke2 {[%emt 0:00:02]} Rb8 {[%emt 0:00:29]} 33. Rd3 {[%emt 0:01:02]} Rbc8 {[%emt 0:00:07]} 34. Rdd4 {[%emt 0:00:09]} Rb8 {[%emt 0:00:07]} 35. Re3 {[%emt 0:00:05]} Rbc8 {[%emt 0:00:04]} 36. Kd3 {[%emt 0:00:03]} Rd8 {[%emt 0:00:15]} 37. Kc3 {[%emt 0:00:03]} Rc5 {[%emt 0:00:16]} 38. Red3 {[%emt 0:00:23]} Rc6 {[%emt 0:00:03]} 39. Kb4 {[%emt 0:00:11]} Rb8+ {[%emt 0:00:08]} 40. Kc3 {[%emt 0:00:04]} Rd8 {[%emt 0:00:02]} 41. Rd5 {[%emt 0:00:07]} Kg8 {[%emt 0:00:16]} 42. c5 {[%emt 0:00:09]} Rdc8 {[%emt 0:00:13]} 43. Kb4 {[%emt 0:00:45]} dxc5+ {[%emt 0:00:07]} 44. Kc4 {[%emt 0:00:07]} Kg7 {[%emt 0:00:07]} 45. Re3 {[%emt 0:00:05]} Rf6 {[%emt 0:00:41]} 46. f3 {[%emt 0:00:12]} Rf4+ {[%emt 0:00:09]} 47. Re4 {[%emt 0:00:02]} Rf6 {[%emt 0:00:07]} 48. Rxc5 {[%emt 0:00:05]} Rxc5+ {[%emt 0:00:02]} 49. Kxc5 {[%emt 0:00:02]} Rf5+ {[%emt 0:00:05]} 50. Kb6 {[%emt 0:00:03]} Rf6+ {[%emt 0:00:02]} 51. Ka5 {[%emt 0:00:02]} Rd6 {[%emt 0:00:03]} 52. Re2 {[%emt 0:00:09]} Rd3 {[%emt 0:00:06]} 53. Ra2 {[%emt 0:00:08]} Rd6 {[%emt 0:00:03]} 54. Rb2 {[%emt 0:00:02]} Rd3 {[%emt 0:00:07]} 55. a4 {[%emt 0:00:18]} Rd6 {[%emt 0:00:16]} 56. Rb6 {[%emt 0:00:12]} Rd5+ {[%emt 0:00:40]} 57. Kxa6 {[%emt 0:00:07]} Rd4 {[%emt 0:00:02]} 58. a5 {[%emt 0:00:03]} Ra4 {[%emt 0:00:05]} 59. Rb5 {[%emt 0:00:04]} Ra2 {[%emt 0:00:02]} 60. Kb6 {[%emt 0:00:15]} Rxg2 {[%emt 0:00:04]} 61. a6 {[%emt 0:00:08]} Ra2 {[%emt 0:00:05]} 62. a7 {[%emt 0:00:01]} h5 {[%emt 0:00:04]} 63. Ra5 {[%emt 0:00:01]} Rb2+ {[%emt 0:00:04]} 64. Ka6 {[%emt 0:00:05]} Rb3 65. a8=Q {[%emt 0:00:04]} Re3 {[%emt 0:00:18]} 66. Qd8 {[%emt 0:00:14]} Re6+ {[%emt 0:00:07]} 67. Ka7 {[%emt 0:00:03]} Re2 {[%emt 0:00:22]} 68. Qd4+ {[%emt 0:00:09]} Kh7 {[%emt 0:00:14]} 69. Re5 {[%emt 0:00:08]} Ra2+ {[%emt 0:00:05]} 70. Kb7 {[%emt 0:00:01]} Ra3 {[%emt 0:00:12]} 71. Qf4 {[%emt 0:00:14]} Rb3+ {[%emt 0:00:12]} 72. Kc6 {[%emt 0:00:01]} Rc3+ {[%emt 0:00:07]} 73. Rc5 {[%emt 0:00:03]} Rxc5+ {[%emt 0:00:04]} 74. Kxc5 {[%emt 0:00:01]} Kg7 {[%emt 0:00:01]} 75. Kd6 {[%emt 0:00:02]} Kg8 {[%emt 0:00:12]} 76. Ke7 {[%emt 0:00:01]} Kh8 {[%emt 0:00:01]} 77. Kf8 {[%emt 0:00:09]} f5 {[%emt 0:00:10]} 78. Qh6# {[%emt 0:00:01]} 1-0

[Event "2nd FIDE WCC Rapid G10"]
[Site "Minsk"]
[Date "2018.06.22"]
[Round "1"]
[White "Szczotka, Klara"]
[Black "Zheleznova, Alina"]
[Result "1-0"]
[ECO "C62"]
[WhiteElo "1465"]
[BlackElo "1108"]
[Annotator "NA RC"]
[PlyCount "103"]
[EventDate "2018.06.22"]
[EventType "rapid"]
[EventCountry "BLR"]
[SourceTitle "playchess.com"]
[Source "ChessBase"]
[SourceQuality "1"]
[TimeControl "600+5"]

1. e4 {[%emt 0:00:00]} e5 {[%emt 0:00:01]} 2. Nf3 {[%emt 0:00:00]} Nc6 {[%emt 0:00:01]} 3. Bb5 {[%emt 0:00:00]} d6 {[%emt 0:00:02]} 4. c3 {[%emt 0:00:12]} Nf6 {[%emt 0:00:18]} 5. d3 {[%emt 0:00:02]} h6 {[%emt 0:00:04]} 6. Nbd2 {[%emt 0:00:08]} Bd7 {[%emt 0:00:08]} 7. h3 {[%emt 0:00:04]} a6 {[%emt 0:00:03]} 8. Ba4 {[%emt 0:00:01]} Be7 {[%emt 0:00:19]} 9. Nf1 {[%emt 0:00:07]} d5 {[%emt 0:00:17]} 10. Qe2 {[%emt 0:00:10]} d4 {[%emt 0:00:21]} 11. Bc2 {[%emt 0:00:50]} O-O {[%emt 0:00:31]} 12. g4 {[%emt 0:00:06]} g5 {[%emt 0:00:25]} 13. Ng3 {[%emt 0:00:08]} Be6 {[%emt 0:00:39]} 14. Nf5 {[%emt 0:00:07]} Qd7 {[%emt 0:00:20]} 15. Nxh6+ {[%emt 0:00:09]} Kh7 {[%emt 0:00:20]} 16. Nf5 {[%emt 0:00:45]} Ng8 {[%emt 0:00:28]} 17. Nxg5+ {[%emt 0:00:34]} Bxg5 {[%emt 0:00:13]} 18. Bxg5 {[%emt 0:00:01]} f6 {[%emt 0:00:16]} 19. Bd2 {[%emt 0:00:07]} Nge7 {[%emt 0:00:19]} 20. Nxe7 {[%emt 0:02:00]} Nxe7 {[%emt 0:00:06]} 21. g5 {[%emt 0:00:06]} fxg5 {[%emt 0:00:24]} 22. Qh5+ {[%emt 0:00:06]} Kg7 {[%emt 0:00:15]} 23. Qxg5+ {[%emt 0:00:04]} Kf7 {[%emt 0:00:07]} 24. Qxe5 {[%emt 0:00:13]} dxc3 {[%emt 0:00:39]} 25. Bxc3 {[%emt 0:00:18]} Ke8 {[%emt 0:00:38]} 26. O-O-O {[%emt 0:01:08]} Nc6 {[%emt 0:00:20]} 27. Qh5+ {[%emt 0:00:10]} Bf7 {[%emt 0:00:09]} 28. Qe2 {[%emt 0:00:14]} Nd4 {[%emt 0:00:36]} 29. Bxd4 {[%emt 0:00:26]} Qxd4 {[%emt 0:00:01]} 30. Qe3 {[%emt 0:00:18]} Qe5 {[%emt 0:00:38]} 31. f4 {[%emt 0:00:16]} Qe6 {[%emt 0:00:05]} 32. Bb3 {[%emt 0:00:08]} Qc6+ {[%emt 0:00:03]} 33. Kb1 {[%emt 0:00:04]} Bxb3 {[%emt 0:00:11]} 34. axb3 {[%emt 0:00:01]} Qf6 {[%emt 0:00:19]} 35. Rhf1 {[%emt 0:00:14]} Qe6 {[%emt 0:00:09]} 36. d4 {[%emt 0:00:10]} c6 {[%emt 0:00:21]} 37. f5 {[%emt 0:00:09]} Qd6 {[%emt 0:00:11]} 38. e5 {[%emt 0:00:05]} Qd5 {[%emt 0:00:01]} 39. Qf3 {[%emt 0:00:14]} Qf7 {[%emt 0:00:28]} 40. e6 {[%emt 0:00:09]} Qf6 {[%emt 0:00:04]} 41. Qe4 {[%emt 0:00:04]} Rh8 {[%emt 0:00:20]} 42. Rd3 {[%emt 0:00:10]} Rh4 {[%emt 0:00:12]} 43. Qe3 {[%emt 0:00:06]} Rd8 {[%emt 0:00:13]} 44. Rf4 {[%emt 0:00:12]} Rxf4 {[%emt 0:00:16]} 45. Qxf4 {[%emt 0:00:01]} c5 {[%emt 0:00:08]} 46. d5 {[%emt 0:00:04]} b5 {[%emt 0:00:28]} 47. Qe4 {[%emt 0:00:10]} Rc8 {[%emt 0:00:18]} 48. d6 Rd8 {[%emt 0:00:14]} 49. e7 {[%emt 0:00:11]} Rxd6 {[%emt 0:00:03]} 50. Re3 {[%emt 0:00:20]} Rd7 {[%emt 0:00:19]} 51. Qa8+ {[%emt 0:00:02]} Kf7 {[%emt 0:00:12]} 52. Qf8# {[%emt 0:00:05] Ke8} 1-0

[Event "2nd FIDE WCC Rapid G10"]
[Site "Minsk"]
[Date "2018.06.22"]
[Round "1"]
[White "Dallemura, Julia"]
[Black "Kirdyashkina, Ekaterina"]
[Result "0-1"]
[ECO "C70"]
[WhiteElo "1151"]
[BlackElo "1463"]
[Annotator "NA RC"]
[PlyCount "180"]
[EventDate "2018.06.22"]
[EventType "rapid"]
[EventCountry "BLR"]
[SourceTitle "playchess.com"]
[Source "ChessBase"]
[SourceQuality "1"]
[TimeControl "600+5"]

1. e4 {[%emt 0:00:00]} e5 {[%emt 0:00:01]} 2. Nf3 {[%emt 0:00:00]} Nc6 {[%emt 0:00:03]} 3. Bb5 {[%emt 0:00:04]} a6 {[%emt 0:00:23]} 4. Ba4 {[%emt 0:00:06]} b5 {[%emt 0:00:44]} 5. Bb3 {[%emt 0:00:15]} Nf6 {[%emt 0:01:34]} 6. d3 {[%emt 0:00:19]} h6 {[%emt 0:00:15]} 7. Bd5 {[%emt 0:02:10]} Bd6 {[%emt 0:00:51]} 8. O-O {[%emt 0:01:30]} O-O {[%emt 0:00:22]} 9. Re1 {[%emt 0:00:52]} Re8 {[%emt 0:00:40]} 10. Bxc6 {[%emt 0:00:52]} dxc6 {[%emt 0:00:04]} 11. d4 {[%emt 0:00:19]} Bg4 {[%emt 0:01:04]} 12. dxe5 {[%emt 0:01:03]} Bxf3 {[%emt 0:00:26]} 13. Qxf3 {[%emt 0:00:02]} Bxe5 {[%emt 0:00:06]} 14. Nc3 {[%emt 0:00:13]} Qd6 {[%emt 0:00:48]} 15. h3 {[%emt 0:00:16]} Rad8 {[%emt 0:00:25]} 16. Rd1 {[%emt 0:00:37]} Qe6 {[%emt 0:00:07]} 17. Rxd8 {[%emt 0:00:02]} Rxd8 {[%emt 0:00:01]} 18. Bf4 {[%emt 0:00:21]} Bxc3 {[%emt 0:00:46]} 19. Qxc3 {[%emt 0:00:06]} Nxe4 {[%emt 0:00:46]} 20. Qe3 {[%emt 0:00:16]} Nd6 {[%emt 0:00:10]} 21. Qa7 {[%emt 0:00:16]} Qc8 {[%emt 0:00:42]} 22. Rd1 {[%emt 0:00:15]} g5 {[%emt 0:00:43]} 23. Bg3 {[%emt 0:00:03]} Rd7 {[%emt 0:00:22]} 24. b3 {[%emt 0:00:11]} f5 {[%emt 0:00:15]} 25. Be5 {[%emt 0:00:22]} Nf7 {[%emt 0:00:13]} 26. Rxd7 {[%emt 0:00:12]} Qxd7 {[%emt 0:00:02]} 27. Qa8+ {[%emt 0:00:03]} Kh7 {[%emt 0:00:03]} 28. Bc3 {[%emt 0:00:39]} Qd1+ {[%emt 0:00:01]} 29. Kh2 {[%emt 0:00:01]} Qxc2 {[%emt 0:00:05]} 30. Bd4 {[%emt 0:00:06]} Qe4 {[%emt 0:00:02]} 31. Be3 {[%emt 0:00:05]} f4 {[%emt 0:00:02]} 32. Bc5 {[%emt 0:00:03]} f3 {[%emt 0:00:07]} 33. Qf8 {[%emt 0:00:40]} Qd5 {[%emt 0:00:12]} 34. Bd4 {[%emt 0:00:06]} Qxd4 35. Qxf7+ {[%emt 0:00:03]} Qg7 {[%emt 0:00:14]} 36. Qxf3 {[%emt 0:00:01]} Qd7 {[%emt 0:00:03]} 37. Qc3 {[%emt 0:00:09]} Qd6+ {[%emt 0:00:03]} 38. g3 {[%emt 0:00:03]} c5 {[%emt 0:00:03]} 39. Qc2+ {[%emt 0:00:02]} Kg7 {[%emt 0:00:03]} 40. Qc3+ {[%emt 0:00:01]} Kf7 {[%emt 0:00:04]} 41. Qf3+ {[%emt 0:00:01]} Qf6 {[%emt 0:00:06]} 42. Qd5+ {[%emt 0:00:02]} Kg7 {[%emt 0:00:09]} 43. Qd7+ {[%emt 0:00:02]} Qf7 {[%emt 0:00:03]} 44. Qd2 {[%emt 0:00:08]} Qe7 {[%emt 0:00:01]} 45. Qc3+ {[%emt 0:00:04]} Kf7 {[%emt 0:00:04]} 46. Qf3+ {[%emt 0:00:01]} Kg8 {[%emt 0:00:24]} 47. Qd5+ {[%emt 0:00:01]} Kg7 {[%emt 0:00:01]} 48. Qf3 {[%emt 0:00:06]} Qe5 {[%emt 0:00:04]} 49. Qd1 {[%emt 0:00:04]} Qd6 {[%emt 0:00:01]} 50. Qa1+ {[%emt 0:00:02]} Kf7 {[%emt 0:00:01]} 51. Qb1 {[%emt 0:00:07]} Qg6 {[%emt 0:00:04]} 52. Qd1 {[%emt 0:00:08]} Ke7 {[%emt 0:00:02]} 53. Qe2+ {[%emt 0:00:01]} Qe6 {[%emt 0:00:02]} 54. Qc2 {[%emt 0:00:10]} Kd6 {[%emt 0:00:08]} 55. Qd3+ {[%emt 0:00:01]} Kc6 {[%emt 0:00:01]} 56. Qf3+ {[%emt 0:00:02]} Kd7 {[%emt 0:00:14]} 57. Qd3+ {[%emt 0:00:02]} Kc8 {[%emt 0:00:01]} 58. Qc3 {[%emt 0:00:06]} Qf5 {[%emt 0:00:08]} 59. Qh8+ {[%emt 0:00:07]} Kb7 {[%emt 0:00:00]} 60. Qb2 {[%emt 0:00:02]} Qf7 {[%emt 0:00:07]} 61. Qe2 {[%emt 0:00:02]} Qd5 {[%emt 0:00:03]} 62. Qc2 {[%emt 0:00:06]} c4 63. bxc4 {[%emt 0:00:08]} Qxc4 {[%emt 0:00:07]} 64. Qd2 {[%emt 0:00:07]} Qe6 {[%emt 0:00:06]} 65. a3 {[%emt 0:00:10]} Qd6 {[%emt 0:00:02]} 66. Qa2 {[%emt 0:00:03]} Kb6 {[%emt 0:00:05]} 67. Qb3 Qf6 {[%emt 0:00:13]} 68. Qe3+ {[%emt 0:00:06]} Kb7 {[%emt 0:00:09]} 69. Qe4+ {[%emt 0:00:01]} Qc6 {[%emt 0:00:01]} 70. Qb1 {[%emt 0:00:11]} Qf3 {[%emt 0:00:03]} 71. Qb2 {[%emt 0:00:04]} Qe4 {[%emt 0:00:10]} 72. Qd2 {[%emt 0:00:17]} Kb6 {[%emt 0:00:06]} 73. Qb2 {[%emt 0:00:03]} Qe6 {[%emt 0:00:13]} 74. Qd4+ {[%emt 0:00:18]} Kb7 {[%emt 0:00:02]} 75. Qe4+ {[%emt 0:00:05]} Qxe4 {[%emt 0:00:02]} 76. g4 {[%emt 0:00:06]} Qf4+ {[%emt 0:00:02]} 77. Kg2 {[%emt 0:00:01]} Qc1 {[%emt 0:00:01]} 78. f3 {[%emt 0:00:04]} Qxa3 {[%emt 0:00:01]} 79. Kg3 {[%emt 0:00:01]} Kc6 {[%emt 0:00:02]} 80. h4 {[%emt 0:00:02]} Kd5 {[%emt 0:00:01]} 81. hxg5 {[%emt 0:00:04]} hxg5 {[%emt 0:00:01]} 82. Kf2 {[%emt 0:00:01]} Ke5 {[%emt 0:00:00]} 83. Kg3 {[%emt 0:00:01]} Qe3 {[%emt 0:00:02]} 84. Kg2 {[%emt 0:00:01]} Kf4 {[%emt 0:00:03]} 85. Kh2 {[%emt 0:00:02]} Qe2+ {[%emt 0:00:03]} 86. Kh3 {[%emt 0:00:02]} Qxf3+ {[%emt 0:00:03]} 87. Kh2 {[%emt 0:00:01]} Kxg4 {[%emt 0:00:04]} 88. Kg1 {[%emt 0:00:00]} Qe2 {[%emt 0:00:00]} 89. Kh1 {[%emt 0:00:02]} Kg3 {[%emt 0:00:00]} 90. Kg1 {[%emt 0:00:01]} Qe1# {[%emt 0:00:00]} 0-1